[Event "*** Titled Tuesday Blitz"]
[Site "Chess.com"]
[Date "2020.10.20"]
[Round "10"]
[White "cstevens1"]
[Black "Smirnov_Pavel"]
[Result "0-1"]
[WhiteElo "2670"]
[BlackElo "2864"]
[TimeControl "180+1"]
[EndTime "11:58:57 PDT"]
[Termination "Smirnov_Pavel won on time"]

1. e4 {[%clk 0:03:00.9]} 1... c5 {[%clk 0:02:59.4]} 2. Nf3 {[%clk 0:03:00.8]}
2... Nc6 {[%clk 0:03:00.3]} 3. Nc3 {[%clk 0:03:00.7]} 3... g6 {[%clk 0:02:59.6]}
4. Bb5 {[%clk 0:03:00.4]} 4... Bg7 {[%clk 0:02:59]} 5. Bxc6 {[%clk 0:03:00.6]}
5... bxc6 {[%clk 0:02:56.6]} 6. d3 {[%clk 0:03:00.9]} 6... d6 {[%clk 0:02:57]}
7. h3 {[%clk 0:03:01]} 7... Nf6 {[%clk 0:02:57.5]} 8. e5 {[%clk 0:03:00.5]} 8...
Nd5 {[%clk 0:02:55.9]} 9. Qe2 {[%clk 0:02:52.9]} 9... O-O {[%clk 0:02:53.5]} 10.
O-O {[%clk 0:02:44.4]} 10... Rb8 {[%clk 0:02:50.8]} 11. Re1 {[%clk 0:02:34.8]}
11... Be6 {[%clk 0:02:42.2]} 12. Ne4 {[%clk 0:02:28.5]} 12... h6 {[%clk
0:02:39.4]} 13. b3 {[%clk 0:02:13.5]} 13... Qd7 {[%clk 0:02:33.1]} 14. c4 {[%clk
0:01:59.5]} 14... Nb6 {[%clk 0:02:10.7]} 15. Bb2 {[%clk 0:01:55.2]} 15... Rbe8
{[%clk 0:02:00.6]} 16. exd6 {[%clk 0:00:58.4]} 16... exd6 {[%clk 0:02:01.5]} 17.
Bxg7 {[%clk 0:00:53.9]} 17... Kxg7 {[%clk 0:02:02.4]} 18. Nf6 {[%clk 0:00:45.1]}
18... Kxf6 {[%clk 0:01:59.2]} 19. Qb2+ {[%clk 0:00:44.3]} 19... Ke7 {[%clk
0:01:58.3]} 20. d4 {[%clk 0:00:35.7]} 20... cxd4 {[%clk 0:01:55.6]} 21. Nxd4
{[%clk 0:00:36.6]} 21... Kd8 {[%clk 0:01:54.8]} 22. Rad1 {[%clk 0:00:29.3]}
22... Kc8 {[%clk 0:01:50.2]} 23. c5 {[%clk 0:00:26.5]} 23... Nd5 {[%clk
0:01:46.9]} 24. cxd6 {[%clk 0:00:26.3]} 24... Qxd6 {[%clk 0:01:47.2]} 25. Nxc6
{[%clk 0:00:24.7]} 25... Kb7 {[%clk 0:01:43.2]} 26. Na5+ {[%clk 0:00:24.2]}
26... Ka8 {[%clk 0:01:42.6]} 27. Nc4 {[%clk 0:00:24.4]} 27... Qc6 {[%clk
0:01:41.5]} 28. Qg7 {[%clk 0:00:21.7]} 28... Nf4 {[%clk 0:01:38.3]} 29. Ne3
{[%clk 0:00:19.5]} 29... Rc8 {[%clk 0:01:31.9]} 30. Qxh6 {[%clk 0:00:18.6]}
30... Nd5 {[%clk 0:01:28.8]} 31. Nc4 {[%clk 0:00:18.7]} 31... Rh8 {[%clk
0:01:26.3]} 32. Qg5 {[%clk 0:00:18.3]} 32... Rh5 {[%clk 0:01:25.2]} 33. Qg3
{[%clk 0:00:17.7]} 33... Rch8 {[%clk 0:01:23.4]} 34. Ne5 {[%clk 0:00:17.9]}
34... Qb7 {[%clk 0:01:22.9]} 35. Nf3 {[%clk 0:00:17.8]} 35... Nc3 {[%clk
0:00:59.3]} 36. Rd4 {[%clk 0:00:07.5]} 36... Bd5 {[%clk 0:00:35.7]} 37. Ng5
{[%clk 0:00:06.5]} 37... Nb5 {[%clk 0:00:35.2]} 38. Rdd1 {[%clk 0:00:04.2]}
38... f6 {[%clk 0:00:32.1]} 39. Ne6 {[%clk 0:00:03.7]} 39... Bxe6 {[%clk
0:00:28.8]} 40. Rxe6 {[%clk 0:00:04.6]} 40... Rg5 {[%clk 0:00:28.7]} 41. Qh2
{[%clk 0:00:02.3]} 41... Nc3 {[%clk 0:00:28.2]} 42. Rde1 {[%clk 0:00:01.9]}
42... Rd5 {[%clk 0:00:24.7]} 43. Re8+ {[%clk 0:00:01.9]} 43... Rd8 {[%clk
0:00:24.6]} 44. Rxd8+ {[%clk 0:00:02.1]} 44... Rxd8 {[%clk 0:00:23.9]} 45. Qg3
{[%clk 0:00:03]} 45... Rc8 {[%clk 0:00:18.6]} 46. Qxg6 {[%clk 0:00:03]} 46...
Nd5 {[%clk 0:00:18.8]} 47. Qf5 {[%clk 0:00:02.7]} 47... a6 {[%clk 0:00:18.3]}
48. Kh2 {[%clk 0:00:03]} 48... Rg8 {[%clk 0:00:17.5]} 49. Qf3 {[%clk 0:00:02.4]}
49... Rd8 {[%clk 0:00:17]} 50. g3 {[%clk 0:00:02.6]} 50... Ka7 {[%clk
0:00:16.9]} 51. Re2 {[%clk 0:00:03]} 51... Qb6 {[%clk 0:00:16.8]} 52. h4 {[%clk
0:00:02.9]} 52... Qd6 {[%clk 0:00:17.1]} 53. Qe4 {[%clk 0:00:02.1]} 53... Kb6
{[%clk 0:00:16.8]} 0-1

[Event "*** Titled Tuesday Blitz"]
[Site "Chess.com"]
[Date "2020.10.20"]
[Round "10"]
[White "HrvojeZagreb"]
[Black "anon481216"]
[Result "0-1"]
[WhiteElo "2198"]
[BlackElo "2400"]
[TimeControl "180+1"]
[EndTime "11:59:03 PDT"]
[Termination "anon481216 won on time"]

1. d4 {[%clk 0:02:38.9]} 1... d5 {[%clk 0:02:58]} 2. Bf4 {[%clk 0:02:38.2]} 2...
c6 {[%clk 0:02:56.9]} 3. e3 {[%clk 0:02:33.8]} 3... Qb6 {[%clk 0:02:56]} 4. Nd2
{[%clk 0:02:28.8]} 4... Qxb2 {[%clk 0:02:53.6]} 5. Ngf3 {[%clk 0:02:27.9]} 5...
Qb6 {[%clk 0:02:52.8]} 6. Bd3 {[%clk 0:02:24.8]} 6... Nf6 {[%clk 0:02:52.5]} 7.
O-O {[%clk 0:02:21]} 7... g6 {[%clk 0:02:49]} 8. c4 {[%clk 0:02:20]} 8... Bg7
{[%clk 0:02:47]} 9. e4 {[%clk 0:02:12]} 9... dxe4 {[%clk 0:02:45.5]} 10. Nxe4
{[%clk 0:02:11]} 10... Nxe4 {[%clk 0:02:43.6]} 11. Bxe4 {[%clk 0:02:11.1]} 11...
O-O {[%clk 0:02:44.5]} 12. h4 {[%clk 0:02:01.1]} 12... Bg4 {[%clk 0:02:41.9]}
13. Qd3 {[%clk 0:02:00.1]} 13... Nd7 {[%clk 0:02:36.9]} 14. Rab1 {[%clk
0:01:57.1]} 14... Qa6 {[%clk 0:02:36.5]} 15. Nh2 {[%clk 0:01:52.4]} 15... Be6
{[%clk 0:02:33.1]} 16. Rfc1 {[%clk 0:01:18.5]} 16... Nb6 {[%clk 0:02:29.3]} 17.
c5 {[%clk 0:00:50.2]} 17... Qxd3 {[%clk 0:02:28.4]} 18. Bxd3 {[%clk 0:00:51.1]}
18... Nd5 {[%clk 0:02:28.4]} 19. Be3 {[%clk 0:00:46.6]} 19... Rab8 {[%clk
0:02:03]} 20. Nf3 {[%clk 0:00:41.4]} 20... Rfd8 {[%clk 0:02:02.3]} 21. Ng5
{[%clk 0:00:37.7]} 21... Bf5 {[%clk 0:02:00.4]} 22. Bxf5 {[%clk 0:00:35]} 22...
gxf5 {[%clk 0:02:00.4]} 23. g3 {[%clk 0:00:32.9]} 23... Rd7 {[%clk 0:01:59.2]}
24. Rb3 {[%clk 0:00:30.4]} 24... Nc7 {[%clk 0:01:46.2]} 25. Nf3 {[%clk
0:00:24.6]} 25... Nb5 {[%clk 0:01:44.4]} 26. Rc4 {[%clk 0:00:21.4]} 26... Rbd8
{[%clk 0:01:42.8]} 27. a4 {[%clk 0:00:19.7]} 27... Nxd4 {[%clk 0:01:41.4]} 28.
Nxd4 {[%clk 0:00:19.7]} 28... Bxd4 {[%clk 0:01:41.5]} 29. Bxd4 {[%clk
0:00:19.4]} 29... Rxd4 {[%clk 0:01:41.6]} 30. Rxd4 {[%clk 0:00:19.7]} 30... Rxd4
{[%clk 0:01:41.7]} 31. Rxb7 {[%clk 0:00:19.7]} 31... Rxa4 {[%clk 0:01:41.8]} 32.
Rxe7 {[%clk 0:00:19.6]} 32... f4 {[%clk 0:01:34.3]} 33. h5 {[%clk 0:00:18.7]}
33... fxg3 {[%clk 0:01:30.6]} 34. fxg3 {[%clk 0:00:18.6]} 34... Kg7 {[%clk
0:01:29.8]} 35. Rc7 {[%clk 0:00:17.8]} 35... Ra6 {[%clk 0:01:29.9]} 36. Kh2
{[%clk 0:00:17]} 36... Kf6 {[%clk 0:01:29.3]} 37. Kh3 {[%clk 0:00:16.7]} 37...
h6 {[%clk 0:01:24.7]} 38. Kh4 {[%clk 0:00:16.5]} 38... Ke6 {[%clk 0:01:19.2]}
39. Rc8 {[%clk 0:00:12.8]} 39... Kd5 {[%clk 0:01:17.9]} 40. Rh8 {[%clk
0:00:12.7]} 40... Kxc5 {[%clk 0:01:16.1]} 41. Rxh6 {[%clk 0:00:13.2]} 41... Ra1
{[%clk 0:01:16.1]} 42. Rf6 {[%clk 0:00:11.8]} 42... a5 {[%clk 0:01:15.8]} 43.
Rxf7 {[%clk 0:00:10.9]} 43... a4 {[%clk 0:01:16]} 44. h6 {[%clk 0:00:10.3]}
44... a3 {[%clk 0:01:13.3]} 45. Kg5 {[%clk 0:00:07.5]} 45... Rh1 {[%clk
0:01:10.5]} 46. Ra7 {[%clk 0:00:06.6]} 46... Kb4 {[%clk 0:01:10.8]} 47. Kg6
{[%clk 0:00:05.7]} 47... c5 {[%clk 0:01:10.7]} 48. g4 {[%clk 0:00:06]} 48... c4
{[%clk 0:01:11]} 49. g5 {[%clk 0:00:06.4]} 49... c3 {[%clk 0:01:11.4]} 50. Kg7
{[%clk 0:00:06]} 50... c2 {[%clk 0:01:11.5]} 51. Rb7+ {[%clk 0:00:06.3]} 51...
Kc3 {[%clk 0:01:11]} 52. h7 {[%clk 0:00:03.3]} 52... c1=Q {[%clk 0:01:09.1]} 53.
Rc7+ {[%clk 0:00:02.9]} 53... Kb2 {[%clk 0:01:09.3]} 54. Rxc1 {[%clk 0:00:02.8]}
54... Kxc1 {[%clk 0:01:09.7]} 55. h8=Q {[%clk 0:00:03.3]} 55... Rxh8 {[%clk
0:01:08.5]} 56. Kxh8 {[%clk 0:00:04.2]} 56... a2 {[%clk 0:01:08.9]} 57. g6
{[%clk 0:00:04.8]} 57... a1=Q+ {[%clk 0:01:09.3]} 58. g7 {[%clk 0:00:05.3]}
58... Qf6 {[%clk 0:01:08.6]} 59. Kh7 {[%clk 0:00:05.4]} 59... Qh4+ {[%clk
0:01:08.5]} 60. Kg8 {[%clk 0:00:05.2]} 60... Kd2 {[%clk 0:01:08.1]} 61. Kf7
{[%clk 0:00:04.7]} 61... Qf4+ {[%clk 0:01:08.5]} 62. Ke8 {[%clk 0:00:04]} 62...
Qe5+ {[%clk 0:01:08.2]} 63. Kf7 {[%clk 0:00:04.4]} 63... Qf5+ {[%clk 0:01:08.6]}
64. Ke8 {[%clk 0:00:04.5]} 64... Qg6+ {[%clk 0:01:08.2]} 65. Kf8 {[%clk
0:00:04.7]} 65... Qf6+ {[%clk 0:01:08.6]} 66. Kg8 {[%clk 0:00:04.3]} 66... Ke3
{[%clk 0:01:08.9]} 67. Kh7 {[%clk 0:00:04.7]} 67... Qh4+ {[%clk 0:01:08.4]} 68.
Kg8 {[%clk 0:00:04.5]} 68... Ke4 {[%clk 0:01:06.7]} 69. Kf7 {[%clk 0:00:04.7]}
69... Qf4+ {[%clk 0:01:06.7]} 70. Ke8 {[%clk 0:00:03.8]} 70... Qe5+ {[%clk
0:01:06.9]} 71. Kf7 {[%clk 0:00:03.9]} 71... Qf5+ {[%clk 0:01:07.2]} 72. Ke8
{[%clk 0:00:03.7]} 72... Qg6+ {[%clk 0:01:07.3]} 73. Kf8 {[%clk 0:00:03.8]}
73... Qf6+ {[%clk 0:01:07.7]} 74. Kg8 {[%clk 0:00:04.3]} 74... Kf5 {[%clk
0:01:07.3]} 75. Kh7 {[%clk 0:00:03.2]} 75... Qh4+ {[%clk 0:01:06.8]} 76. Kg8
{[%clk 0:00:03]} 76... Kg6 {[%clk 0:01:06.2]} 0-1

[Event "*** Titled Tuesday Blitz"]
[Site "Chess.com"]
[Date "2020.10.20"]
[Round "10"]
[White "profofchess"]
[Black "UCantHandleDenker"]
[Result "0-1"]
[WhiteElo "2351"]
[BlackElo "2520"]
[TimeControl "180+1"]
[EndTime "11:59:04 PDT"]
[Termination "UCantHandleDenker won on time"]

1. e4 {[%clk 0:03:00.9]} 1... c5 {[%clk 0:02:58.8]} 2. Nf3 {[%clk 0:03:00.2]}
2... d6 {[%clk 0:02:58.2]} 3. c3 {[%clk 0:03:00]} 3... Nf6 {[%clk 0:02:56.3]} 4.
Bc4 {[%clk 0:03:00]} 4... g6 {[%clk 0:02:55.1]} 5. e5 {[%clk 0:02:59.8]} 5...
dxe5 {[%clk 0:02:53.5]} 6. Nxe5 {[%clk 0:03:00.7]} 6... e6 {[%clk 0:02:52.7]} 7.
d4 {[%clk 0:03:00]} 7... Bg7 {[%clk 0:02:46.7]} 8. O-O {[%clk 0:02:58.3]} 8...
cxd4 {[%clk 0:02:43.9]} 9. cxd4 {[%clk 0:02:58.1]} 9... O-O {[%clk 0:02:44]} 10.
Nc3 {[%clk 0:02:53]} 10... Nbd7 {[%clk 0:02:41.3]} 11. Bg5 {[%clk 0:02:42.6]}
11... Nxe5 {[%clk 0:02:16.9]} 12. dxe5 {[%clk 0:02:41.6]} 12... Qxd1 {[%clk
0:02:17.4]} 13. Raxd1 {[%clk 0:02:32.7]} 13... Ng4 {[%clk 0:02:16.8]} 14. Be7
{[%clk 0:02:03.1]} 14... Re8 {[%clk 0:02:12.1]} 15. Bd6 {[%clk 0:02:03.2]} 15...
Nxe5 {[%clk 0:02:03.6]} 16. Bb5 {[%clk 0:01:58]} 16... Nc6 {[%clk 0:02:02.7]}
17. Bxc6 {[%clk 0:01:35.8]} 17... bxc6 {[%clk 0:02:00.7]} 18. Na4 {[%clk
0:01:35.8]} 18... Ba6 {[%clk 0:01:54.8]} 19. Rfe1 {[%clk 0:01:35.9]} 19... Bc4
{[%clk 0:01:54.3]} 20. b3 {[%clk 0:01:33.4]} 20... Bd5 {[%clk 0:01:54.3]} 21.
Nc5 {[%clk 0:01:33.5]} 21... a5 {[%clk 0:01:49.5]} 22. h3 {[%clk 0:01:29.3]}
22... Bc3 {[%clk 0:01:41.7]} 23. Re3 {[%clk 0:01:23.3]} 23... Bb4 {[%clk
0:01:41.6]} 24. Ne4 {[%clk 0:01:15.1]} 24... Bxe4 {[%clk 0:01:34]} 25. Rxe4
{[%clk 0:00:53.2]} 25... Rad8 {[%clk 0:01:26.4]} 26. Red4 {[%clk 0:00:53.4]}
26... e5 {[%clk 0:00:56.1]} 27. R4d3 {[%clk 0:00:26.4]} 27... c5 {[%clk
0:00:29.3]} 28. Bc7 {[%clk 0:00:15.6]} 28... Rxd3 {[%clk 0:00:27.4]} 29. Rxd3
{[%clk 0:00:15.3]} 29... e4 {[%clk 0:00:26]} 30. Re3 {[%clk 0:00:09.6]} 30... f5
{[%clk 0:00:24.9]} 31. Kf1 {[%clk 0:00:06.8]} 31... Kf7 {[%clk 0:00:24.5]} 32.
f3 {[%clk 0:00:06.8]} 32... Rc8 {[%clk 0:00:17.9]} 33. Bg3 {[%clk 0:00:03.7]}
33... exf3 {[%clk 0:00:18.3]} 34. gxf3 {[%clk 0:00:03.6]} 34... c4 {[%clk
0:00:19.1]} 35. bxc4 {[%clk 0:00:03.4]} 35... Rxc4 {[%clk 0:00:18.7]} 36. Re2
{[%clk 0:00:03.3]} 36... Rc1+ {[%clk 0:00:18.3]} 37. Kg2 {[%clk 0:00:03.2]}
37... Bc5 {[%clk 0:00:17.7]} 38. Bf2 {[%clk 0:00:03.1]} 38... Bxf2 {[%clk
0:00:17]} 39. Kxf2 {[%clk 0:00:03.6]} 39... Ra1 {[%clk 0:00:14.1]} 40. Rb2
{[%clk 0:00:03.8]} 40... Kf6 {[%clk 0:00:13.5]} 41. Kg3 {[%clk 0:00:03.8]} 41...
h6 {[%clk 0:00:12.9]} 42. f4 {[%clk 0:00:03.9]} 42... g5 {[%clk 0:00:12.2]} 43.
Kf3 {[%clk 0:00:03.9]} 43... Kg6 {[%clk 0:00:12.2]} 44. Kg3 {[%clk 0:00:03.6]}
44... Kh5 {[%clk 0:00:12.4]} 45. Rc2 {[%clk 0:00:03.1]} 45... Rg1+ {[%clk
0:00:11.9]} 46. Kh2 {[%clk 0:00:03.4]} 46... Rf1 {[%clk 0:00:11.2]} 47. fxg5
{[%clk 0:00:03.2]} 47... hxg5 {[%clk 0:00:12.1]} 48. Kg2 {[%clk 0:00:03.7]}
48... Ra1 {[%clk 0:00:11.3]} 49. Rf2 {[%clk 0:00:03.3]} 49... f4 {[%clk
0:00:10.9]} 50. Rb2 {[%clk 0:00:03.5]} 50... a4 {[%clk 0:00:11.4]} 51. Rc2
{[%clk 0:00:03.2]} 51... a3 {[%clk 0:00:11.8]} 52. Rd2 {[%clk 0:00:03.6]} 52...
Rb1 {[%clk 0:00:12.1]} 53. Kf2 {[%clk 0:00:01.9]} 53... Rb2 {[%clk 0:00:12.3]}
54. Ke2 {[%clk 0:00:01.1]} 54... Kh4 {[%clk 0:00:12.3]} 0-1

[Event "*** Titled Tuesday Blitz"]
[Site "Chess.com"]
[Date "2020.10.20"]
[Round "10"]
[White "PotapovaM"]
[Black "barriochess"]
[Result "1-0"]
[WhiteElo "2534"]
[BlackElo "2313"]
[TimeControl "180+1"]
[EndTime "11:59:07 PDT"]
[Termination "PotapovaM won by checkmate"]

1. e4 {[%clk 0:03:00.9]} 1... c5 {[%clk 0:02:57.7]} 2. g3 {[%clk 0:03:00.9]}
2... Nc6 {[%clk 0:02:57.2]} 3. Bg2 {[%clk 0:03:00.3]} 3... g6 {[%clk 0:02:57.7]}
4. d3 {[%clk 0:02:58.6]} 4... Bg7 {[%clk 0:02:58.1]} 5. Ne2 {[%clk 0:02:58.8]}
5... d6 {[%clk 0:02:57.9]} 6. O-O {[%clk 0:02:55.4]} 6... e5 {[%clk 0:02:58.3]}
7. Nec3 {[%clk 0:02:49.5]} 7... Nge7 {[%clk 0:02:58]} 8. Nd2 {[%clk 0:02:49.6]}
8... Be6 {[%clk 0:02:53.9]} 9. Nc4 {[%clk 0:02:48.9]} 9... d5 {[%clk 0:02:53.3]}
10. exd5 {[%clk 0:02:47.2]} 10... Nxd5 {[%clk 0:02:53.1]} 11. Ne4 {[%clk
0:02:42.3]} 11... b6 {[%clk 0:02:40.2]} 12. Ned6+ {[%clk 0:02:13.3]} 12... Kf8
{[%clk 0:02:37.4]} 13. Ne4 {[%clk 0:02:13.8]} 13... h6 {[%clk 0:02:35.3]} 14. a4
{[%clk 0:01:56.6]} 14... f5 {[%clk 0:02:30.9]} 15. Ned6 {[%clk 0:01:51]} 15...
Kg8 {[%clk 0:02:29.2]} 16. Re1 {[%clk 0:01:25.7]} 16... Qd7 {[%clk 0:02:06.4]}
17. Nb5 {[%clk 0:01:21.3]} 17... Kh7 {[%clk 0:01:57.1]} 18. Bd2 {[%clk
0:01:09.4]} 18... Rhe8 {[%clk 0:01:55.7]} 19. c3 {[%clk 0:00:56.6]} 19... Bg8
{[%clk 0:01:52.7]} 20. h4 {[%clk 0:00:49]} 20... Rad8 {[%clk 0:01:38.2]} 21. h5
{[%clk 0:00:46.2]} 21... g5 {[%clk 0:01:37.1]} 22. Bh3 {[%clk 0:00:46.5]} 22...
g4 {[%clk 0:01:35.9]} 23. Bg2 {[%clk 0:00:46.7]} 23... Bf8 {[%clk 0:01:21.1]}
24. Qc2 {[%clk 0:00:43.1]} 24... Bf7 {[%clk 0:01:08.6]} 25. a5 {[%clk
0:00:29.5]} 25... a6 {[%clk 0:00:42.4]} 26. Bxd5 {[%clk 0:00:16.1]} 26... Qxd5
{[%clk 0:00:18.3]} 27. Nc7 {[%clk 0:00:16]} 27... Qd7 {[%clk 0:00:15.6]} 28.
Nxe8 {[%clk 0:00:14.6]} 28... Qxe8 {[%clk 0:00:15.4]} 29. Bf4 {[%clk 0:00:12]}
29... Bd5 {[%clk 0:00:13.9]} 30. Nxe5 {[%clk 0:00:11.3]} 30... Qxh5 {[%clk
0:00:14]} 31. f3 {[%clk 0:00:09]} 31... Ne7 {[%clk 0:00:12.2]} 32. Qh2 {[%clk
0:00:07.3]} 32... Qxh2+ {[%clk 0:00:12]} 33. Kxh2 {[%clk 0:00:08.2]} 33... gxf3
{[%clk 0:00:12.6]} 34. Kg1 {[%clk 0:00:06.5]} 34... b5 {[%clk 0:00:12.9]} 35.
Kf2 {[%clk 0:00:06.8]} 35... Ng6 {[%clk 0:00:12.7]} 36. Nxg6 {[%clk 0:00:06.6]}
36... Kxg6 {[%clk 0:00:13.6]} 37. Re5 {[%clk 0:00:06.5]} 37... Bg7 {[%clk
0:00:13.5]} 38. Re7 {[%clk 0:00:04.9]} 38... b4 {[%clk 0:00:12.4]} 39. Ra7
{[%clk 0:00:05.2]} 39... bxc3 {[%clk 0:00:12.4]} 40. Rxa6+ {[%clk 0:00:05.3]}
40... Kh7 {[%clk 0:00:12.4]} 41. bxc3 {[%clk 0:00:05.8]} 41... Bxc3 {[%clk
0:00:12.7]} 42. Rb1 {[%clk 0:00:06.3]} 42... Bd4+ {[%clk 0:00:12.8]} 43. Be3
{[%clk 0:00:06.6]} 43... Bxe3+ {[%clk 0:00:12.4]} 44. Kxe3 {[%clk 0:00:07.5]}
44... Re8+ {[%clk 0:00:13]} 45. Kf2 {[%clk 0:00:07.9]} 45... Re2+ {[%clk
0:00:13.2]} 46. Kf1 {[%clk 0:00:08.1]} 46... Rh2 {[%clk 0:00:13]} 47. Rbb6
{[%clk 0:00:08.1]} 47... Rh1+ {[%clk 0:00:10.8]} 48. Kf2 {[%clk 0:00:08.1]}
48... Rh2+ {[%clk 0:00:11.2]} 49. Kf1 {[%clk 0:00:06.8]} 49... c4 {[%clk
0:00:10.9]} 50. Ra7+ {[%clk 0:00:06.5]} 50... Kh8 {[%clk 0:00:06.3]} 51. Rb8+
{[%clk 0:00:06.6]} 51... Bg8 {[%clk 0:00:06.5]} 52. Raa8 {[%clk 0:00:07]} 52...
Kg7 {[%clk 0:00:05.1]} 53. Rxg8+ {[%clk 0:00:06.9]} 53... Kf6 {[%clk 0:00:06]}
54. dxc4 {[%clk 0:00:07]} 54... Ke5 {[%clk 0:00:06.9]} 55. Rad8 {[%clk
0:00:06.6]} 55... Ke4 {[%clk 0:00:06.1]} 56. Rge8# {[%clk 0:00:06.7]} 1-0

[Event "*** Titled Tuesday Blitz"]
[Site "Chess.com"]
[Date "2020.10.20"]
[Round "10"]
[White "akanga001"]
[Black "Skatchkov_V"]
[Result "0-1"]
[WhiteElo "1900"]
[BlackElo "2499"]
[TimeControl "180+1"]
[EndTime "11:59:07 PDT"]
[Termination "Skatchkov_V won on time"]

1. d4 {[%clk 0:03:00.9]} 1... Nf6 {[%clk 0:02:59.4]} 2. c4 {[%clk 0:03:00.7]}
2... e6 {[%clk 0:03:00]} 3. Nf3 {[%clk 0:02:59.5]} 3... b6 {[%clk 0:03:00.3]} 4.
g3 {[%clk 0:02:58.2]} 4... Bb7 {[%clk 0:03:00.8]} 5. Bg2 {[%clk 0:02:57.5]} 5...
Be7 {[%clk 0:03:01.4]} 6. O-O {[%clk 0:02:56.2]} 6... O-O {[%clk 0:03:02.2]} 7.
Nc3 {[%clk 0:02:56.2]} 7... Ne4 {[%clk 0:03:01.7]} 8. Bd2 {[%clk 0:02:55.2]}
8... Bf6 {[%clk 0:03:00.6]} 9. Qc2 {[%clk 0:02:54.7]} 9... Nxd2 {[%clk 0:03:00]}
10. Qxd2 {[%clk 0:02:53.4]} 10... c5 {[%clk 0:02:59.4]} 11. dxc5 {[%clk
0:02:51.4]} 11... bxc5 {[%clk 0:02:58.9]} 12. Rfd1 {[%clk 0:02:49.9]} 12... Qe7
{[%clk 0:02:36.3]} 13. Nb5 {[%clk 0:02:47.6]} 13... d5 {[%clk 0:02:33.7]} 14.
cxd5 {[%clk 0:02:39.7]} 14... exd5 {[%clk 0:02:34.6]} 15. e3 {[%clk 0:02:21.8]}
15... Rd8 {[%clk 0:02:29.4]} 16. Rac1 {[%clk 0:02:14.6]} 16... Na6 {[%clk
0:02:26.1]} 17. a3 {[%clk 0:02:12.5]} 17... Rac8 {[%clk 0:02:26.2]} 18. Nxa7
{[%clk 0:02:11.3]} 18... Rb8 {[%clk 0:02:24.6]} 19. Nb5 {[%clk 0:02:09.2]} 19...
Bc6 {[%clk 0:02:24.7]} 20. Nc3 {[%clk 0:02:03.7]} 20... Rb3 {[%clk 0:02:24.3]}
21. Qc2 {[%clk 0:01:59.2]} 21... Rb7 {[%clk 0:02:12.8]} 22. Na4 {[%clk
0:01:49.2]} 22... Rc8 {[%clk 0:01:55.5]} 23. Nxc5 {[%clk 0:01:37.5]} 23... Rxb2
{[%clk 0:01:55.1]} 24. Qf5 {[%clk 0:01:28.4]} 24... Re8 {[%clk 0:01:09.2]} 25.
Nxa6 {[%clk 0:01:25.7]} 25... Rxf2 {[%clk 0:01:07.8]} 26. Rxc6 {[%clk
0:01:04.8]} 26... Qxe3 {[%clk 0:01:07.9]} 27. Qd3 {[%clk 0:00:53.6]} 27... Rxf3+
{[%clk 0:00:53.8]} 28. Qxe3 {[%clk 0:00:53]} 28... Rfxe3 {[%clk 0:00:54.7]} 29.
Bxd5 {[%clk 0:00:49.6]} 29... Rxa3 {[%clk 0:00:53.5]} 30. Nc7 {[%clk 0:00:43.9]}
30... Rd8 {[%clk 0:00:53.9]} 31. Ra6 {[%clk 0:00:24.3]} 31... Rc3 {[%clk
0:00:46.2]} 32. Ra8 {[%clk 0:00:19.6]} 32... Rxc7 {[%clk 0:00:42.5]} 33. Rxd8+
{[%clk 0:00:19.4]} 33... Bxd8 {[%clk 0:00:43.4]} 34. Bxf7+ {[%clk 0:00:18.7]}
34... Kxf7 {[%clk 0:00:44.3]} 35. Rxd8 {[%clk 0:00:18.9]} 35... Rc2 {[%clk
0:00:45.2]} 36. Rd3 {[%clk 0:00:18]} 36... Kf6 {[%clk 0:00:44.4]} 37. Rf3+
{[%clk 0:00:18.9]} 37... Kg5 {[%clk 0:00:44.6]} 38. Rf2 {[%clk 0:00:19.8]} 38...
Rc1+ {[%clk 0:00:44.6]} 39. Kg2 {[%clk 0:00:20.7]} 39... h5 {[%clk 0:00:45.5]}
40. Rf4 {[%clk 0:00:20.6]} 40... Rb1 {[%clk 0:00:45.6]} 41. Rf2 {[%clk
0:00:21.5]} 41... Kh6 {[%clk 0:00:45.1]} 42. Re2 {[%clk 0:00:22.4]} 42... g5
{[%clk 0:00:46]} 43. Ra2 {[%clk 0:00:23.3]} 43... Rd1 {[%clk 0:00:45.7]} 44.
Ra6+ {[%clk 0:00:24.2]} 44... Kg7 {[%clk 0:00:45.9]} 45. Kh3 {[%clk 0:00:14.8]}
45... Rd2 {[%clk 0:00:44.8]} 46. Ra7+ {[%clk 0:00:14.6]} 46... Kf6 {[%clk
0:00:42.4]} 47. Ra6+ {[%clk 0:00:14.1]} 47... Ke7 {[%clk 0:00:40.6]} 48. Ra7+
{[%clk 0:00:14]} 48... Kd6 {[%clk 0:00:38.7]} 49. Ra5 {[%clk 0:00:14]} 49... g4+
{[%clk 0:00:38.4]} 50. Kh4 {[%clk 0:00:14.2]} 50... Rxh2+ {[%clk 0:00:39.3]} 51.
Kg5 {[%clk 0:00:14.5]} 51... Rh3 {[%clk 0:00:40]} 52. Ra6+ {[%clk 0:00:12.3]}
52... Ke5 {[%clk 0:00:40.1]} 53. Ra5+ {[%clk 0:00:11.9]} 53... Ke4 {[%clk
0:00:40.1]} 54. Kh6 {[%clk 0:00:11.3]} 54... Kf3 {[%clk 0:00:39.5]} 55. Ra3+
{[%clk 0:00:05.6]} 55... Kg2 {[%clk 0:00:39.8]} 56. Kg5 {[%clk 0:00:03.9]} 56...
Kh2 {[%clk 0:00:37.3]} 57. Rc3 {[%clk 0:00:01.1]} 57... Rxg3 {[%clk 0:00:36.7]}
0-1